[Event "9e Open International de Porticcio"]
[Site "Porticcio, France"]
[Date "2024.07.03"]
[Round "7.11"]
[White "Winnubst, Paul"]
[Black "Ercoli, Andria"]
[Result "0-1"]
[TimeControl "1h30+30s/move"]
[WhiteElo "1871"]
[BlackElo "1723"]

1. d4 {[%clk 01:30:56]} {[%emt 00:00:03]} Nf6 {[%clk 01:30:52]} {[%emt
00:00:08]} 2. c4 {[%clk 01:31:23]} {[%emt 00:00:03]} g6 {[%clk 01:31:18]}
{[%emt 00:00:04]} 3. Nc3 {[%clk 01:31:51]} {[%emt 00:00:03]} Bg7 {[%clk
01:31:40]} {[%emt 00:00:07]} 4. e4 {[%clk 01:32:18]} {[%emt 00:00:03]} d6
{[%clk 01:32:01]} {[%emt 00:00:09]} 5. Nf3 {[%clk 01:32:45]} {[%emt 00:00:03]}
O-O {[%clk 01:31:53]} {[%emt 00:00:38]} 6. Be2 {[%clk 01:33:12]} {[%emt
00:00:04]} e5 {[%clk 01:31:49]} {[%emt 00:00:34]} 7. Be3 {[%clk 01:33:34]}
{[%emt 00:00:08]} exd4 {[%clk 01:32:07]} {[%emt 00:00:12]} 8. Nxd4 {[%clk
01:33:59]} {[%emt 00:00:05]} Re8 {[%clk 01:32:20]} {[%emt 00:00:16]} 9. Qc2
{[%clk 01:34:25]} {[%emt 00:00:05]} c6 {[%clk 01:32:16]} {[%emt 00:00:33]} 10.
Rd1 {[%clk 01:34:51]} {[%emt 00:00:05]} a5 {[%clk 01:25:22]} {[%emt 00:07:24]}
11. O-O {[%clk 01:32:50]} {[%emt 00:02:31]} Qe7 {[%clk 01:23:55]} {[%emt
00:01:56]} 12. Bf3 {[%clk 01:24:57]} {[%emt 00:08:25]} Nbd7 {[%clk 01:17:22]}
{[%emt 00:07:03]} 13. Rfe1 {[%clk 01:20:19]} {[%emt 00:05:08]} Ne5 {[%clk
01:13:29]} {[%emt 00:04:21]} 14. b3 {[%clk 01:12:53]} {[%emt 00:07:58]} c5
{[%clk 01:02:42]} {[%emt 00:11:17]} 15. Ndb5 {[%clk 01:09:58]} {[%emt
00:03:24]} Nxf3+ {[%clk 01:02:37]} {[%emt 00:00:35]} 16. gxf3 {[%clk 01:10:07]}
{[%emt 00:00:21]} Rd8 {[%clk 00:46:47]} {[%emt 00:16:19]} 17. Bg5 {[%clk
01:01:02]} {[%emt 00:09:35]} Be6 {[%clk 00:41:11]} {[%emt 00:06:06]} 18. f4
{[%clk 00:58:39]} {[%emt 00:02:54]} h6 {[%clk 00:33:36]} {[%emt 00:08:05]} 19.
Bh4 {[%clk 00:57:49]} {[%emt 00:01:20]} g5 {[%clk 00:31:51]} {[%emt 00:02:15]}
20. fxg5 {[%clk 00:56:10]} {[%emt 00:02:09]} Ng4 {[%clk 00:31:16]} {[%emt
00:01:05]} 21. Nd5 {[%clk 00:52:35]} {[%emt 00:04:05]} Bxd5 {[%clk 00:31:14]}
{[%emt 00:00:32]} 22. exd5 {[%clk 00:52:19]} {[%emt 00:00:46]} Ne5 {[%clk
00:29:27]} {[%emt 00:02:13]} 23. Qf5 {[%clk 00:42:16]} {[%emt 00:10:36]} hxg5
{[%clk 00:27:46]} {[%emt 00:02:12]} 24. Bg3 {[%clk 00:42:39]} {[%emt 00:00:07]}
Qd7 {[%clk 00:23:19]} {[%emt 00:04:57]} 25. Qxd7 {[%clk 00:36:07]} {[%emt
00:07:02]} Rxd7 {[%clk 00:23:12]} {[%emt 00:00:36]} 26. Kg2 {[%clk 00:35:50]}
{[%emt 00:00:47]} f5 {[%clk 00:20:14]} {[%emt 00:03:28]} 27. f4 {[%clk
00:34:05]} {[%emt 00:02:15]} gxf4 {[%clk 00:19:49]} {[%emt 00:00:54]} 28. Bxf4
{[%clk 00:34:19]} {[%emt 00:00:17]} Re8 {[%clk 00:16:13]} {[%emt 00:04:06]} 29.
Re3 {[%clk 00:32:11]} {[%emt 00:02:39]} Bf8 {[%clk 00:14:31]} {[%emt 00:02:12]}
30. Rde1 {[%clk 00:29:23]} {[%emt 00:03:18]} Rg7+ {[%clk 00:14:06]} {[%emt
00:00:55]} 31. Kh1 {[%clk 00:28:47]} {[%emt 00:01:05]} Ng4 {[%clk 00:13:46]}
{[%emt 00:00:50]} 32. R3e2 {[%clk 00:28:07]} {[%emt 00:01:10]} Nf2+ {[%clk
00:14:03]} {[%emt 00:00:14]} 33. Kg2 {[%emt 00:00:18]} 0-1

[Event "9e Open International de Porticcio"]
[Site "Porticcio, France"]
[Date "2024.07.04"]
[Round "8.1"]
[White "Batsiashvili, Nino"]
[Black "Lagarde, Maxime"]
[Result "1/2-1/2"]
[TimeControl "1h30+30s/move"]
[WhiteElo "2450"]
[BlackElo "2604"]

1. d4 {[%clk 01:30:58]} {[%emt 00:00:01]} Nf6 {[%clk 01:28:57]} {[%emt
00:01:57]} 2. c4 {[%clk 01:31:26]} {[%emt 00:00:08]} g6 {[%clk 01:29:21]}
{[%emt 00:00:06]} 3. Nc3 {[%clk 01:31:52]} {[%emt 00:00:04]} Bg7 {[%clk
01:29:48]} {[%emt 00:00:03]} 4. Nf3 {[%clk 01:30:12]} {[%emt 00:02:09]} O-O
{[%clk 01:29:46]} {[%emt 00:00:32]} 5. g3 {[%clk 01:30:37]} {[%emt 00:00:05]}
d5 {[%clk 01:26:39]} {[%emt 00:03:37]} 6. cxd5 {[%clk 01:29:57]} {[%emt
00:01:10]} Nxd5 {[%clk 01:27:05]} {[%emt 00:00:05]} 7. Bg2 {[%clk 01:30:17]}
{[%emt 00:00:10]} Nc6 {[%clk 01:25:51]} {[%emt 00:01:44]} 8. O-O {[%clk
01:29:33]} {[%emt 00:01:14]} Nb6 {[%clk 01:26:09]} {[%emt 00:00:12]} 9. e3
{[%clk 01:28:54]} {[%emt 00:01:09]} a5 {[%clk 01:24:55]} {[%emt 00:01:44]} 10.
h3 {[%clk 01:22:37]} {[%emt 00:06:45]} Re8 {[%clk 01:23:37]} {[%emt 00:01:50]}
11. d5 {[%clk 01:19:22]} {[%emt 00:03:45]} Nb4 {[%clk 01:22:34]} {[%emt
00:01:33]} 12. e4 {[%clk 01:17:13]} {[%emt 00:02:40]} c6 {[%clk 01:16:25]}
{[%emt 00:06:39]} 13. a3 {[%clk 01:11:47]} {[%emt 00:05:56]} Na6 {[%clk
01:16:45]} {[%emt 00:00:09]} 14. dxc6 {[%clk 01:05:37]} {[%emt 00:06:39]} bxc6
{[%clk 01:06:55]} {[%emt 00:10:20]} 15. Qc2 {[%clk 01:05:08]} {[%emt 00:01:00]}
e5 {[%clk 01:01:52]} {[%emt 00:05:33]} 16. Rd1 {[%clk 01:04:17]} {[%emt
00:01:21]} Qe7 {[%clk 01:00:03]} {[%emt 00:02:20]} 17. Bf1 {[%clk 01:00:46]}
{[%emt 00:04:00]} Nc5 {[%clk 00:55:04]} {[%emt 00:05:28]} 18. Bg5 {[%clk
00:59:42]} {[%emt 00:01:34]} f6 {[%clk 00:53:54]} {[%emt 00:01:41]} 19. Be3
{[%clk 00:59:59]} {[%emt 00:00:13]} Be6 {[%clk 00:52:14]} {[%emt 00:02:10]} 20.
b4 {[%clk 00:55:30]} {[%emt 00:04:59]} Ncd7 {[%clk 00:46:15]} {[%emt 00:06:30]}
21. Nd2 {[%clk 00:53:33]} {[%emt 00:02:27]} axb4 {[%clk 00:43:35]} {[%emt
00:03:10]} 22. axb4 {[%clk 00:54:01]} {[%emt 00:00:02]} Rxa1 {[%clk 00:41:01]}
{[%emt 00:03:04]} 23. Rxa1 {[%clk 00:54:29]} {[%emt 00:00:01]} Qxb4 {[%clk
00:40:26]} {[%emt 00:01:04]} 24. Na4 {[%clk 00:51:49]} {[%emt 00:03:10]} Nxa4
{[%clk 00:38:02]} {[%emt 00:02:55]} 25. Rxa4 {[%clk 00:52:11]} {[%emt
00:00:07]} Qd6 {[%clk 00:37:28]} {[%emt 00:01:04]} 26. Nc4 {[%clk 00:50:59]}
{[%emt 00:01:42]} Qf8 {[%clk 00:36:34]} {[%emt 00:01:24]} 27. Ra6 {[%clk
00:48:50]} {[%emt 00:02:40]} Nb8 {[%clk 00:30:42]} {[%emt 00:06:22]} 28. Rb6
{[%clk 00:46:22]} {[%emt 00:02:58]} Bh6 {[%clk 00:24:03]} {[%emt 00:07:08]} 29.
Bxh6 {[%clk 00:41:00]} {[%emt 00:05:52]} Qxh6 {[%clk 00:24:30]} {[%emt
00:00:03]} 30. Nd6 {[%clk 00:41:14]} {[%emt 00:00:17]} Rd8 {[%clk 00:24:55]}
{[%emt 00:00:05]} 31. Nb7 {[%clk 00:41:07]} {[%emt 00:00:37]} Qd2 {[%clk
00:23:50]} {[%emt 00:01:35]} 32. Qxd2 {[%clk 00:27:50]} {[%emt 00:13:47]} Rxd2
{[%clk 00:24:14]} {[%emt 00:00:05]} 33. Na5 {[%clk 00:28:12]} {[%emt 00:00:08]}
Rd8 {[%clk 00:23:35]} {[%emt 00:01:09]} 34. Nxc6 {[%clk 00:28:37]} {[%emt
00:00:05]} Nxc6 {[%clk 00:24:01]} {[%emt 00:00:04]} 35. Rxc6 {[%clk 00:29:04]}
{[%emt 00:00:03]} Kf7 {[%clk 00:24:18]} {[%emt 00:00:12]} 36. Bc4 {[%clk
00:28:40]} {[%emt 00:00:53]} Bxc4 {[%clk 00:24:40]} {[%emt 00:00:09]} 37. Rxc4
{[%clk 00:29:08]} {[%emt 00:00:02]} g5 {[%clk 00:24:54]} {[%emt 00:00:15]} 38.
Kg2 {[%clk 00:29:05]} {[%emt 00:00:32]} h5 {[%clk 00:25:17]} {[%emt 00:00:08]}
39. Rc7+ {[%clk 00:29:12]} {[%emt 00:00:23]} Kg6 {[%clk 00:25:44]} {[%emt
00:00:03]} 40. g4 {[%clk 00:28:54]} {[%emt 00:00:49]} hxg4 {[%clk 00:26:08]}
{[%emt 00:00:07]} 41. hxg4 {[%clk 00:29:20]} {[%emt 00:00:03]} Rd4 {[%clk
00:26:32]} {[%emt 00:00:06]} 42. f3 {[%clk 00:29:45]} {[%emt 00:00:05]} Rd2+
{[%clk 00:27:00]} {[%emt 00:00:02]} 43. Kg3 {[%clk 00:30:06]} {[%emt 00:00:09]}
Rb2 {[%clk 00:27:27]} {[%emt 00:00:03]} 44. Rd7 {[%clk 00:30:32]} {[%emt
00:00:04]} Ra2 {[%clk 00:27:53]} {[%emt 00:00:04]} 45. Rc7 {[%clk 00:30:58]}
{[%emt 00:00:04]} Rb2 {[%clk 00:28:21]} {[%emt 00:00:03]} 46. Rd7 {[%clk
00:31:17]} {[%emt 00:00:11]} Ra2 {[%clk 00:28:47]} {[%emt 00:00:03]} 47. Rc7
{[%clk 00:31:43]} {[%emt 00:00:04]} Rb2 {[%emt 00:00:08]} 1/2-1/2

[Event "9e Open International de Porticcio"]
[Site "Porticcio, France"]
[Date "2024.07.04"]
[Round "8.2"]
[White "Bulmaga, Irina"]
[Black "Fedorchuk, Sergey A."]
[Result "1/2-1/2"]
[TimeControl "1h30+30s/move"]
[WhiteElo "2391"]
[BlackElo "2546"]

1. e4 {[%clk 01:30:57]} {[%emt 00:00:02]} c5 {[%clk 01:28:35]} {[%emt
00:02:15]} 2. c3 {[%clk 01:31:23]} {[%emt 00:00:15]} Nf6 {[%clk 01:25:13]}
{[%emt 00:03:51]} 3. e5 {[%clk 01:31:38]} {[%emt 00:00:15]} Nd5 {[%clk
01:25:33]} {[%emt 00:00:09]} 4. Bc4 {[%clk 01:31:58]} {[%emt 00:00:11]} Nb6
{[%clk 01:23:33]} {[%emt 00:02:31]} 5. Bb3 {[%clk 01:32:20]} {[%emt 00:00:08]}
c4 {[%clk 01:23:51]} {[%emt 00:00:12]} 6. Bc2 {[%clk 01:32:43]} {[%emt
00:00:06]} d6 {[%clk 01:24:14]} {[%emt 00:00:07]} 7. Nf3 {[%clk 01:28:08]}
{[%emt 00:05:04]} dxe5 {[%clk 01:16:48]} {[%emt 00:07:57]} 8. Nxe5 {[%clk
01:27:59]} {[%emt 00:00:39]} Qd5 {[%clk 01:08:13]} {[%emt 00:09:04]} 9. Qe2
{[%clk 01:26:59]} {[%emt 00:01:30]} Qxg2 {[%clk 01:04:24]} {[%emt 00:04:19]} 10.
Be4 {[%clk 01:26:30]} {[%emt 00:00:59]} Qg5 {[%clk 01:04:22]} {[%emt 00:00:32]}
11. Nxc4 {[%clk 01:24:33]} {[%emt 00:02:27]} Nxc4 {[%clk 01:02:13]} {[%emt
00:02:39]} 12. Qxc4 {[%clk 01:22:32]} {[%emt 00:02:31]} Nd7 {[%clk 00:57:58]}
{[%emt 00:04:46]} 13. Na3 {[%clk 01:15:40]} {[%emt 00:07:22]} Qe5 {[%clk
00:41:32]} {[%emt 00:16:56]} 14. f3 {[%clk 00:43:14]} {[%emt 00:32:57]} a6
{[%clk 00:27:12]} {[%emt 00:14:50]} 15. d4 {[%clk 00:42:10]} {[%emt 00:01:33]}
Qb8 {[%clk 00:27:13]} {[%emt 00:00:30]} 16. Qe2 {[%clk 00:39:23]} {[%emt
00:03:17]} e6 {[%clk 00:27:09]} {[%emt 00:00:34]} 17. Nc4 {[%clk 00:39:15]}
{[%emt 00:00:37]} Be7 {[%clk 00:26:38]} {[%emt 00:01:02]} 18. Rg1 {[%clk
00:37:36]} {[%emt 00:02:08]} g6 {[%clk 00:22:02]} {[%emt 00:05:07]} 19. Bh6
{[%clk 00:32:24]} {[%emt 00:05:42]} Qc7 {[%clk 00:21:43]} {[%emt 00:00:49]} 20.
O-O-O {[%clk 00:29:17]} {[%emt 00:03:36]} Rb8 {[%clk 00:21:12]} {[%emt
00:01:02]} 21. d5 {[%clk 00:23:42]} {[%emt 00:06:04]} b5 {[%clk 00:21:24]}
{[%emt 00:00:18]} 22. dxe6 {[%clk 00:17:38]} {[%emt 00:06:35]} fxe6 {[%clk
00:21:37]} {[%emt 00:00:18]} 23. Ne3 {[%clk 00:07:23]} {[%emt 00:10:43]} b4
{[%clk 00:16:41]} {[%emt 00:05:27]} 24. c4 {[%clk 00:07:19]} {[%emt 00:00:34]}
b3 {[%clk 00:16:49]} {[%emt 00:00:22]} 25. axb3 {[%clk 00:04:44]} {[%emt
00:03:05]} Nc5 {[%clk 00:15:37]} {[%emt 00:01:42]} 26. Bc2 {[%clk 00:03:11]}
{[%emt 00:02:03]} Qa5 {[%clk 00:15:02]} {[%emt 00:01:05]} 27. Kb1 {[%clk
00:03:14]} {[%emt 00:00:27]} Nxb3 {[%clk 00:14:00]} {[%emt 00:01:32]} 28. Bxb3
{[%clk 00:03:42]} {[%emt 00:00:02]} Rxb3 {[%clk 00:14:24]} {[%emt 00:00:06]} 29.
Rd3 {[%clk 00:02:23]} {[%emt 00:01:49]} Rxd3 {[%clk 00:08:54]} {[%emt
00:06:00]} 30. Qxd3 {[%clk 00:02:51]} {[%emt 00:00:02]} Kf7 {[%clk 00:09:19]}
{[%emt 00:00:05]} 31. Qe4 {[%clk 00:01:14]} {[%emt 00:02:07]} Rd8 {[%clk
00:09:10]} {[%emt 00:00:39]} 32. Ng4 {[%clk 00:00:48]} {[%emt 00:00:56]} Qf5
{[%clk 00:04:44]} {[%emt 00:04:55]} 33. Ne5+ {[%clk 00:01:16]} {[%emt
00:00:03]} Ke8 {[%clk 00:05:07]} {[%emt 00:00:07]} 34. Qxf5 {[%clk 00:01:12]}
{[%emt 00:00:34]} exf5 {[%clk 00:05:19]} {[%emt 00:00:18]} 35. Nc6 {[%clk
00:00:45]} {[%emt 00:00:56]} Rd7 {[%clk 00:04:58]} {[%emt 00:00:52]} 36. Re1
{[%clk 00:01:03]} {[%emt 00:00:11]} Bb7 {[%clk 00:05:23]} {[%emt 00:00:05]} 37.
Rxe7+ {[%clk 00:00:53]} {[%emt 00:00:40]} Rxe7 {[%clk 00:05:49]} {[%emt
00:00:04]} 38. Nxe7 {[%clk 00:01:19]} {[%emt 00:00:04]} Kxe7 {[%clk 00:06:15]}
{[%emt 00:00:04]} 39. f4 {[%clk 00:01:43]} {[%emt 00:00:05]} Be4+ {[%clk
00:06:38]} {[%emt 00:00:07]} 40. Kc1 {[%clk 00:02:05]} {[%emt 00:00:08]} Kd6
{[%clk 00:07:01]} {[%emt 00:00:08]} 41. Kd2 {[%clk 00:02:26]} {[%emt 00:00:09]}
Kc6 {[%clk 00:07:02]} {[%emt 00:00:28]} 42. b4 {[%clk 00:02:36]} {[%emt
00:00:20]} Bg2 {[%clk 00:07:21]} {[%emt 00:00:11]} 43. Kc3 {[%clk 00:02:42]}
{[%emt 00:00:25]} Bf1 {[%clk 00:07:47]} {[%emt 00:00:04]} 44. Kd4 {[%clk
00:02:55]} {[%emt 00:00:17]} Be2 {[%clk 00:08:11]} {[%emt 00:00:06]} 45. Bf8
{[%clk 00:02:46]} {[%emt 00:00:36]} Bf1 {[%clk 00:08:34]} {[%emt 00:00:09]} 46.
h4 {[%clk 00:02:47]} {[%emt 00:00:29]} Be2 {[%clk 00:08:53]} {[%emt 00:00:11]}
47. Be7 {[%clk 00:02:26]} {[%emt 00:00:51]} Bf1 {[%clk 00:09:18]} {[%emt
00:00:04]} 48. Bf8 {[%clk 00:02:26]} {[%emt 00:00:31]} Be2 {[%clk 00:09:44]}
{[%emt 00:00:04]} 49. Be7 {[%clk 00:02:52]} {[%emt 00:00:03]} Bf1 {[%clk
00:10:12]} {[%emt 00:00:03]} 50. Bf8 {[%clk 00:03:09]} {[%emt 00:00:13]} Be2
{[%clk 00:10:39]} {[%emt 00:00:04]} 51. Be7 {[%clk 00:03:35]} {[%emt 00:00:04]}
Bf1 {[%emt 00:00:08]} 52. Ke4 1/2-1/2

[Event "9e Open International de Porticcio"]
[Site "Porticcio, France"]
[Date "2024.07.04"]
[Round "8.3"]
[White "Terrieux, Kevin"]
[Black "Hamdouchi, Hicham"]
[Result "0-1"]
[TimeControl "1h30+30s/move"]
[WhiteElo "2408"]
[BlackElo "2527"]

1. d4 {[%clk 01:26:51]} {[%emt 00:01:13]} Nf6 {[%clk 01:30:40]} {[%emt
00:00:20]} 2. Nf3 {[%clk 01:26:46]} {[%emt 00:00:36]} e6 {[%clk 01:30:44]}
{[%emt 00:00:26]} 3. e3 {[%clk 01:22:34]} {[%emt 00:04:42]} c5 {[%clk
01:27:26]} {[%emt 00:03:48]} 4. Bd3 {[%clk 01:22:31]} {[%emt 00:00:33]} b6
{[%clk 01:26:21]} {[%emt 00:01:35]} 5. O-O {[%clk 01:22:22]} {[%emt 00:00:39]}
Bb7 {[%clk 01:26:10]} {[%emt 00:00:41]} 6. c4 {[%clk 01:22:42]} {[%emt
00:00:10]} g6 {[%clk 01:22:34]} {[%emt 00:04:06]} 7. Nc3 {[%clk 01:21:03]}
{[%emt 00:02:10]} Bg7 {[%clk 01:22:45]} {[%emt 00:00:19]} 8. e4 {[%clk
01:14:00]} {[%emt 00:07:32]} cxd4 {[%clk 01:21:28]} {[%emt 00:01:47]} 9. Nxd4
{[%clk 01:14:10]} {[%emt 00:00:20]} d6 {[%clk 01:19:03]} {[%emt 00:02:55]} 10.
Be3 {[%clk 01:12:26]} {[%emt 00:02:14]} O-O {[%clk 01:19:03]} {[%emt 00:00:30]}
11. h3 {[%clk 00:52:00]} {[%emt 00:20:56]} Nbd7 {[%clk 01:16:30]} {[%emt
00:03:02]} 12. Nf3 {[%clk 00:44:49]} {[%emt 00:07:41]} Nc5 {[%clk 01:12:09]}
{[%emt 00:04:51]} 13. Qc2 {[%clk 00:42:25]} {[%emt 00:02:55]} Rc8 {[%clk
01:07:14]} {[%emt 00:05:25]} 14. Rad1 {[%clk 00:42:21]} {[%emt 00:00:35]} Qc7
{[%clk 01:00:11]} {[%emt 00:07:33]} 15. b3 {[%clk 00:38:11]} {[%emt 00:04:40]}
a6 {[%clk 00:59:53]} {[%emt 00:00:48]} 16. Bd4 {[%clk 00:34:22]} {[%emt
00:04:18]} Qe7 {[%clk 00:51:44]} {[%emt 00:08:39]} 17. Rfe1 {[%clk 00:32:18]}
{[%emt 00:02:35]} e5 {[%clk 00:48:22]} {[%emt 00:03:52]} 18. Be3 {[%clk
00:30:04]} {[%emt 00:02:44]} b5 {[%clk 00:45:19]} {[%emt 00:03:33]} 19. Bxc5
{[%clk 00:24:33]} {[%emt 00:06:02]} Rxc5 {[%clk 00:45:01]} {[%emt 00:00:47]} 20.
Qd2 {[%clk 00:24:17]} {[%emt 00:00:47]} Rfc8 {[%clk 00:44:10]} {[%emt
00:01:21]} 21. Bf1 {[%clk 00:23:13]} {[%emt 00:01:34]} Bf8 {[%clk 00:34:27]}
{[%emt 00:10:12]} 22. Rc1 {[%clk 00:21:27]} {[%emt 00:02:16]} b4 {[%clk
00:29:34]} {[%emt 00:05:24]} 23. Na4 {[%clk 00:20:24]} {[%emt 00:01:34]} R5c7
{[%clk 00:19:10]} {[%emt 00:10:54]} 24. Bd3 {[%clk 00:20:03]} {[%emt 00:00:51]}
a5 {[%clk 00:18:43]} {[%emt 00:00:57]} 25. a3 {[%clk 00:19:57]} {[%emt
00:00:36]} bxa3 {[%clk 00:17:04]} {[%emt 00:02:08]} 26. Qa2 {[%clk 00:14:18]}
{[%emt 00:06:10]} d5 {[%clk 00:15:19]} {[%emt 00:02:15]} 27. exd5 {[%clk
00:14:45]} {[%emt 00:00:02]} Nxd5 {[%clk 00:15:37]} {[%emt 00:00:12]} 28. Be4
{[%clk 00:14:24]} {[%emt 00:00:51]} Qf6 {[%clk 00:14:52]} {[%emt 00:01:16]} 29.
Bxd5 {[%clk 00:12:35]} {[%emt 00:02:19]} Bxd5 {[%clk 00:15:15]} {[%emt
00:00:07]} 30. Nxe5 {[%clk 00:12:57]} {[%emt 00:00:08]} Bb7 {[%clk 00:11:21]}
{[%emt 00:04:23]} 31. Ng4 {[%clk 00:09:23]} {[%emt 00:04:04]} Qc6 {[%clk
00:10:32]} {[%emt 00:01:20]} 32. f3 {[%clk 00:09:51]} {[%emt 00:00:02]} h5
{[%clk 00:08:49]} {[%emt 00:02:12]} 33. Ne5 {[%clk 00:09:55]} {[%emt 00:00:27]}
Qe6 {[%clk 00:08:08]} {[%emt 00:01:11]} 34. c5 {[%clk 00:08:08]} {[%emt
00:02:17]} Rd8 {[%clk 00:03:44]} {[%emt 00:04:54]} 35. Qxa3 {[%clk 00:06:07]}
{[%emt 00:02:30]} Bh6 {[%clk 00:04:09]} {[%emt 00:00:06]} 36. Nc4 {[%clk
00:06:09]} {[%emt 00:00:28]} Qf6 {[%clk 00:03:29]} {[%emt 00:01:10]} 37. Qa1
{[%clk 00:05:20]} {[%emt 00:01:19]} Qh4 {[%clk 00:03:30]} {[%emt 00:00:29]} 38.
Rcd1 {[%clk 00:04:53]} {[%emt 00:00:57]} Rcc8 {[%clk 00:02:43]} {[%emt
00:01:17]} 39. Nd6 {[%clk 00:04:24]} {[%emt 00:00:59]} Bxf3 {[%clk 00:02:45]}
{[%emt 00:00:27]} 40. Nxc8 {[%clk 00:01:11]} {[%emt 00:03:44]} Be3+ {[%clk
00:02:34]} {[%emt 00:00:41]} 41. Rxe3 {[%clk 00:00:44]} {[%emt 00:00:57]} Rxd1+
{[%clk 00:02:54]} {[%emt 00:00:09]} 42. Qxd1 {[%clk 00:01:13]} {[%emt
00:00:01]} Bxd1 {[%clk 00:03:15]} {[%emt 00:00:09]} 43. Ne7+ {[%clk 00:00:50]}
{[%emt 00:00:53]} Kg7 {[%clk 00:02:48]} {[%emt 00:00:56]} 44. Nc3 {[%clk
00:00:32]} {[%emt 00:00:48]} Bxb3 {[%clk 00:02:48]} {[%emt 00:00:30]} 45. c6
{[%clk 00:00:35]} {[%emt 00:00:28]} Qd4 {[%clk 00:02:36]} {[%emt 00:00:42]} 46.
Kf2 {[%clk 00:00:47]} {[%emt 00:00:18]} a4 {[%clk 00:02:44]} {[%emt 00:00:22]}
47. Ne4 {[%clk 00:00:31]} {[%emt 00:00:46]} Be6 {[%clk 00:02:14]} {[%emt
00:00:59]} 48. c7 {[%clk 00:01:00]} {[%emt 00:00:02]} a3 {[%clk 00:02:24]}
{[%emt 00:00:19]} 49. Nc6 {[%clk 00:01:14]} {[%emt 00:00:16]} Qb6 {[%clk
00:02:21]} {[%emt 00:00:32]} 50. Nd6 {[%clk 00:01:04]} {[%emt 00:00:40]} Qxc6
{[%clk 00:02:33]} {[%emt 00:00:19]} 51. Rxe6 {[%clk 00:01:29]} {[%emt
00:00:05]} fxe6 {[%clk 00:02:43]} {[%emt 00:00:19]} 0-1